bitfinex/quotes_SOLUSD_20260213
["timestamp","ask_amount","ask_price","bid_price","bid_amount"]
[1771010167085,3.8103296,85.2,85.151,2.81522962]
[1771010167398,3.8103296,85.2,85.161,2.81522962]
[1771010167604,14.80268947,85.199,85.161,2.81522962]
[1771010167790,3.06546251,85.198,85.161,2.81522962]
[1771010167991,3.8103296,85.2,85.161,2.81522962]
[1771010168187,3.8103296,85.21,85.171,2.81522962]
[1771010168411,11.73584949,85.209,85.171,2.81522962]
[1771010169290,14.801312,85.209,85.173,2.81522962]
[1771010170093,3.06546251,85.208,85.173,2.81522962]
[1771010170521,3.8103296,85.2,85.173,2.81522962]
[1771010170683,3.8103296,85.19,85.165,2.81522962]
[1771010171096,6.87579211,85.2,85.165,2.81522962]
[1771010171707,11.73657818,85.204,85.166,2.81522962]
[1771010172014,11.73584949,85.209,85.171,2.81522962]
[1771010172414,14.801312,85.209,85.171,2.81522962]
[1771010172591,3.06546251,85.208,85.171,2.81522962]
[1771010173713,3.8103296,85.2,85.171,2.81522962]
[1771010173917,6.87579211,85.2,85.172,14.55617734]
[1771010174098,3.06546251,85.199,85.173,2.81522962]
[1771010174611,3.8103296,85.2,85.173,2.81522962]
[1771010174794,3.06546251,85.206,85.173,2.81522962]
[1771010174999,10.22119713,85.2,85.173,2.81522962]
[1771010175195,13.28665964,85.2,85.173,2.81522962]
[1771010175803,10.22119713,85.2,85.175,2.81522962]
[1771010176715,11.73721311,85.2,85.175,2.81522962]
[1771010177711,10.22119713,85.2,85.175,2.81522962]
[1771010178019,3.06546251,85.205,85.175,2.81522962]
[1771010178411,3.06546251,85.205,85.177,2.81522962]
[1771010179708,11.73516088,85.214,85.179,2.81522962]
[1771010179914,46.91311993,85.264,85.181,2.81522962]
[1771010179915,14.7993841,85.223,85.181,2.81522962]
[1771010180718,11.73309554,85.229,85.191,2.81522962]
[1771010180910,11.73309554,85.229,85.178,41.0904224]
[1771010180911,3.06546251,85.239,85.201,2.81522962]
[1771010181113,11.73171904,85.239,85.201,2.81522962]
[1771010181313,3.06546251,85.238,85.201,2.81522962]
[1771010181519,3.06546251,85.229,85.194,2.81522962]
[1771010181722,3.06546251,85.218,85.194,2.81522962]
[1771010182014,3.06546251,85.199,85.171,2.81522962]
[1771010183513,11.73736472,85.198,85.171,2.81522962]
[1771010184125,3.06546251,85.197,85.171,2.81522962]
[1771010184524,3.06546251,85.197,85.161,2.81522962]
[1771010185113,10.22119713,85.19,85.161,2.81522962]
[1771010185325,3.06546251,85.179,85.15,2.81522962]
[1771010185627,10.22119713,85.18,85.15,2.81522962]
[1771010185628,14.80558319,85.178,85.151,2.81522962]
[1771010186708,53.62,85.191,85.15,11.74388706]
[1771010186709,11.73953161,85.183,85.153,2.81522962]
[1771010187726,53.62,85.191,85.153,2.81522962]
[1771010187908,11.73846695,85.19,85.153,2.81522962]
[1771010188618,21.95966408,85.19,85.153,2.81522962]
[1771010188928,3.06546251,85.189,85.155,2.81522962]
[1771010189808,3.06546251,85.179,85.155,2.81522962]
[1771010190004,3.06546251,85.179,85.141,2.81522962]
[1771010191123,10.22119713,85.18,85.14,57.90119713]
[1771010191124,3.05673725,85.177,85.142,2.92694511]
[1771010192639,3.05673725,85.159,85.14,0.2]
[1771010193419,3.05673725,85.167,85.141,2.92694511]
[1771010193615,10.22119713,85.17,85.142,2.92694511]
[1771010193823,53.68,85.173,85.142,2.92694511]
[1771010194227,11.73946668,85.183,85.15,10.22119713]
[1771010194534,10.22119713,85.16,85.14,0.2]
[1771010194716,3.05673725,85.159,85.14,0.2]
[1771010195616,3.05673725,85.168,85.14,3.12694511]
[1771010195820,10.22119713,85.16,85.14,3.12694511]
[1771010196333,3.05673725,85.168,85.14,3.12694511]
[1771010196913,3.05673725,85.166,85.14,3.12694511]
[1771010198344,3.10024046,85.159,85.14,0.2]
[1771010199013,3.10024046,85.157,85.14,0.2]
[1771010200940,3.81981517,85.16,85.12,12.45798664]
[1771010200941,3.10024046,85.147,85.12,12.45798664]
[1771010201110,11.74425705,85.148,85.12,12.45798664]
[1771010201111,3.10024046,85.139,85.12,12.45798664]
[1771010202436,14.84581202,85.139,85.12,12.45798664]
[1771010203230,14.84581202,85.139,85.097,2.90364907]
[1771010203231,3.10024046,85.138,85.097,2.90364907]
[1771010203424,3.81981517,85.14,85.101,2.90364907]
[1771010203619,3.81981517,85.15,85.111,2.90364907]
[1771010203814,50.76828087,85.2,85.095,0.72389214]
[1771010203815,1.0131813,85.199,85.121,2.90364907]
[1771010204020,3.81981517,85.16,85.121,2.90364907]
[1771010204525,15.56242606,85.16,85.123,2.90364907]
[1771010204925,3.81981517,85.17,85.123,2.90364907]
[1771010205130,3.81981517,85.17,85.131,2.90364907]
[1771010206539,15.56114179,85.17,85.133,2.90364907]
[1771010206738,11.74132662,85.17,85.133,2.90364907]
[1771010207043,30.36868806,85.183,85.132,41.11262509]
[1771010207044,53.72,85.187,85.151,2.90364907]
[1771010207419,54.74150143,85.187,85.151,2.90364907]
[1771010207619,4.8413166,85.18,85.151,2.90364907]
[1771010208534,1.02320036,85.179,85.151,2.90364907]
[1771010208735,11.74012068,85.178,85.151,2.90364907]
[1771010208924,1.02320036,85.177,85.151,2.90364907]
[1771010209238,1.02320036,85.177,85.152,2.90364907]
[1771010209842,11.74004229,85.179,85.153,2.90364907]
[1771010210563,3.81981517,85.19,85.153,2.90364907]
[1771010210564,11.73949607,85.183,85.153,2.90364907]
[1771010210850,11.73736472,85.198,85.163,2.90364907]
[1771010211856,29.34336771,85.199,85.163,2.90364907]
[1771010212148,12.69537876,85.205,85.171,2.90364907]
[1771010212340,12.69537876,85.205,85.161,29.35601457]
[1771010212341,0.93806085,85.189,85.161,2.90364907]
[1771010214050,11.73874254,85.188,85.162,11.74232638]
[1771010214252,11.73874254,85.188,85.163,2.90364907]
[1771010215628,41.0855989,85.188,85.163,1.80214299]
[1771010216140,13.7169876,85.188,85.163,1.80214299]
[1771010218053,13.7169876,85.188,85.158,11.74275863]
[1771010218054,1.93852873,85.187,85.158,11.74275863]
[1771010218348,1.93852873,85.187,85.159,2.90364907]
[1771010219736,11.73901814,85.186,85.159,2.90364907]
[1771010219934,1.89971952,85.185,85.159,2.90364907]
[1771010220168,1.89971952,85.185,85.15,3.81702143]
[1771010220169,1.89971952,85.185,85.153,2.90364907]
[1771010220844,58.68289004,85.204,85.142,47.36]
[1771010220845,53.8,85.202,85.171,2.98297104]
[1771010221550,29.34026018,85.208,85.171,2.98297104]
[1771010221551,1.84407865,85.201,85.171,2.98297104]
[1771010222155,11.7370892,85.2,85.171,2.98297104]
[1771010222333,1.8261081,85.199,85.171,2.98297104]
[1771010225633,11.73736472,85.198,85.171,2.98297104]
[1771010226446,41.08077653,85.198,85.172,2.98297104]
[1771010226647,1.75626644,85.197,85.161,2.98297104]
[1771010228242,1.72253739,85.195,85.161,2.98297104]
[1771010229964,1.72253739,85.195,85.124,61.9]
[1771010229965,1.70596286,85.189,85.143,2.98297104]
[1771010230262,1.70596286,85.189,85.102,47.00206667]
[1771010230263,1.70596286,85.189,85.151,2.98297104]
[1771010231966,1.67338275,85.187,85.151,2.98297104]
[1771010234260,1.6259025,85.179,85.143,2.98297104]
[1771010234465,1.6259025,85.178,85.143,2.98297104]
[1771010234961,1.6259025,85.159,85.131,2.98297104]
[1771010236051,11.74287794,85.158,85.131,2.98297104]
[1771010236451,1.59515097,85.157,85.131,2.98297104]
[1771010236853,11.74287794,85.158,85.131,2.98297104]
[1771010237563,11.74053419,85.175,85.141,2.98297104]
[1771010237766,11.73915595,85.185,85.161,2.98297104]
[1771010238154,11.73819137,85.192,85.161,2.98297104]
[1771010238559,1.5651018,85.191,85.161,2.98297104]
[1771010240563,11.73846695,85.19,85.161,2.98297104]
[1771010241061,13.27420591,85.19,85.161,2.98297104]
[1771010241274,1.52130999,85.179,85.148,2.98297104]
[1771010241865,1.52130999,85.169,85.142,2.98297104]
[1771010242665,1.50704676,85.167,85.131,2.98297104]
[1771010242862,1.50704676,85.165,85.131,2.98297104]
[1771010243671,1.49294736,85.159,85.131,2.98297104]
[1771010243857,1.49294736,85.159,85.12,3.81702143]
[1771010243858,1.49294736,85.159,85.124,2.98297104]
[1771010245765,1.46523253,85.157,85.124,2.98297104]
[1771010247873,1.4381507,85.149,85.115,2.98297104]
[1771010248081,41.10103809,85.156,85.104,2.98297104]
[1771010248082,1.4381507,85.139,85.104,2.98297104]
[1771010248581,1.42484263,85.129,85.104,2.98297104]
[1771010248777,1.42484263,85.129,85.096,2.98297104]
[1771010249663,3.81702143,85.12,85.095,3.70686318]
[1771010249865,1.41168742,85.117,85.095,1e-08]
[1771010250068,1.41168742,85.109,85.095,1e-08]
[1771010250363,1.39868332,85.099,85.088,1e-08]
[1771010250564,1.39868332,85.099,85.056,2.98297104]
[1771010250869,1.39868332,85.099,85.055,11.75709834]
[1771010250870,1.38582857,85.098,85.061,2.62092353]
[1771010251780,1.37312148,85.089,85.061,2.62092353]
[1771010252173,11.75253854,85.088,85.061,2.62092353]
[1771010252378,1.37312148,85.089,85.061,2.62092353]
[1771010252379,54.08,85.098,85.071,2.62092353]
[1771010252583,11.75005287,85.106,85.071,2.62092353]
[1771010252883,13.1106132,85.106,85.071,2.62092353]
[1771010253095,1.36056033,85.105,85.071,2.62092353]
[1771010253881,3.81702143,85.1,85.071,2.62092353]
[1771010254086,11.750329,85.104,85.071,2.62092353]
[1771010258097,1.28816596,85.103,85.071,2.62092353]
[1771010259695,11.75060515,85.102,85.071,2.62092353]
[1771010259876,41.12711804,85.102,85.071,2.62092353]
[1771010260885,1.25380761,85.101,85.071,2.62092353]
[1771010261894,11.75088131,85.1,85.071,2.62092353]
[1771010262299,11.74994454,85.107,85.071,2.62092353]
[1771010262499,11.74994454,85.107,85.081,2.67238129]
[1771010262877,11.74825832,85.119,85.101,2.67238129]
[1771010263077,11.74701625,85.128,85.101,2.67238129]
[1771010263699,11.74563649,85.138,85.101,2.67238129]
[1771010264000,42.33034736,85.138,85.101,2.67238129]
[1771010264296,1.20981012,85.137,85.101,2.67238129]
[1771010264511,1.20981012,85.129,85.091,2.67238129]
[1771010265280,1.20981012,85.129,85.092,2.67238129]
[1771010265504,1.19912477,85.127,85.092,2.67238129]
[1771010266206,5.00558358,85.12,85.092,2.67238129]
[1771010266400,1.18856215,85.12,85.092,2.67238129]
[1771010267009,3.81702143,85.11,85.081,2.67238129]
[1771010267185,1.18856215,85.109,85.081,2.67238129]
[1771010267384,1.18856215,85.109,85.071,2.67238129]
[1771010267585,1.17812085,85.099,85.071,2.67238129]
[1771010268198,1.16779948,85.097,85.071,2.67238129]
[1771010268791,1.16779948,85.097,85.021,61.9]
[1771010268792,1.16779948,85.089,85.056,2.67238129]
[1771010269187,1.16779948,85.089,85.05,2.77238129]
[1771010269406,1.15759667,85.079,85.05,2.77238129]
[1771010269704,54.24,85.088,85.05,2.77238129]
[1771010269705,1.15759667,85.069,85.05,0.1]
[1771010270400,47.00388922,85.1,85.02,3.91702143]
[1771010270401,2.50820953,85.059,85.02,3.91702143]
[1771010270890,2.50820953,85.059,85.02,10.3568651]
[1771010271086,2.50820953,85.059,85.03,10.2568651]
[1771010271300,11.75530164,85.068,85.04,10.2568651]
[1771010272390,2.50820953,85.069,85.031,2.67238129]
[1771010274398,11.75530164,85.068,85.031,2.67238129]
[1771010275203,31.89044347,85.086,85.051,2.67238129]
[1771010275502,11.75309106,85.084,85.051,2.67238129]
[1771010275882,58.75007529,85.107,85.027,46.92]
[1771010275883,2.50820953,85.104,85.071,2.67238129]
[1771010276082,2.50820953,85.104,85.035,9.9781544]
[1771010276083,11.74963869,85.109,85.081,2.67238129]
[1771010276497,2.50820953,85.114,85.081,2.67238129]
[1771010276498,11.7490865,85.113,85.081,2.67238129]
[1771010277008,14.25729603,85.113,85.081,2.67238129]
[1771010277712,11.74848313,85.118,85.091,2.67238129]
[1771010278010,2.50820953,85.117,85.091,2.67238129]
[1771010278403,11.7486724,85.116,85.091,2.67238129]
[1771010278713,2.50820953,85.115,85.081,2.67238129]
[1771010280414,11.74563649,85.138,85.101,2.67238129]
[1771010280632,11.74563649,85.138,85.065,4.61729252]
[1771010280633,11.74563649,85.138,85.111,2.67238129]
[1771010281112,2.39355438,85.155,85.121,2.4198929]
[1771010281308,11.74301584,85.157,85.141,2.4198929]
[1771010281616,11.74301584,85.157,85.095,4.61729252]
[1771010281617,2.39355438,85.156,85.12,10.25447699]
[1771010281910,2.39355438,85.149,85.11,10.25447699]
[1771010282300,56.69355438,85.149,85.11,10.25447699]
[1771010282500,2.39355438,85.146,85.11,10.25447699]
[1771010282813,2.39355438,85.146,85.1,10.25447699]
[1771010283317,4.61729252,85.171,85.065,35.29204164]
[1771010283318,11.74136129,85.169,85.14,10.25447699]
[1771010283606,11.74136129,85.169,85.105,4.61729252]
[1771010283607,2.39355438,85.18,85.151,2.4198929]
[1771010283808,29.34941178,85.181,85.105,9.9781544]
[1771010283809,2.39355438,85.188,85.161,2.4198929]
[1771010284008,14.13215912,85.189,85.161,2.4198929]
[1771010284207,14.13215912,85.189,85.123,22.06]
[1771010284208,2.39355438,85.188,85.151,2.4198929]
[1771010284509,10.25447699,85.19,85.151,2.4198929]
[1771010284510,2.39355438,85.186,85.151,2.4198929]
[1771010285109,2.39355438,85.179,85.141,2.4198929]
[1771010286693,2.39355438,85.177,85.141,2.4198929]
[1771010286891,2.39355438,85.177,85.151,2.4198929]
[1771010287707,11.74012068,85.178,85.151,2.4198929]
[1771010288297,2.39355438,85.177,85.151,2.4198929]
[1771010288698,11.74039635,85.176,85.151,2.4198929]
[1771010289698,11.74039635,85.176,85.131,2.4198929]
[1771010289699,2.39355438,85.175,85.131,2.4198929]
[1771010290417,2.39355438,85.175,85.141,2.4198929]
[1771010293216,11.74067203,85.174,85.16,10.25447699]
[1771010293817,11.74067203,85.174,85.14,10.25447699]
[1771010293818,2.39355438,85.173,85.14,10.25447699]
[1771010294018,11.74067203,85.174,85.16,10.25447699]
[1771010294410,11.74067203,85.174,85.154,2.4198929]
[1771010295626,11.73998285,85.179,85.154,2.4198929]
[1771010298621,11.73860474,85.189,85.171,2.4198929]
[1771010298806,11.73860474,85.189,85.164,2.4198929]
[1771010299013,2.39355438,85.188,85.16,10.25447699]
[1771010299305,10.25447699,85.2,85.125,4.61729252]
[1771010299306,11.73748821,85.198,85.171,2.4198929]
[1771010299510,10.45447699,85.22,85.181,2.4198929]
[1771010299511,2.39355438,85.206,85.181,2.4198929]
[1771010301219,11.73640044,85.205,85.181,2.4198929]
[1771010301823,11.73640044,85.205,85.18,10.25447699]
[1771010301824,2.39355438,85.204,85.18,10.25447699]
[1771010302127,2.39355438,85.204,85.167,2.4198929]
[1771010302325,2.39355438,85.199,85.161,2.4198929]
[1771010303132,2.39355438,85.189,85.151,2.4198929]
[1771010303332,2.39355438,85.187,85.151,2.4198929]
[1771010304328,2.39355438,85.179,85.141,2.4198929]
[1771010305011,2.39355438,85.169,85.133,2.4198929]
[1771010305423,2.39355438,85.159,85.121,2.4198929]
[1771010306437,2.39355438,85.149,85.113,2.4198929]
[1771010306640,2.39355438,85.149,85.064,17.11668158]
[1771010306641,2.39355438,85.149,85.121,2.4198929]
[1771010306819,2.39355438,85.159,85.121,2.4198929]
[1771010307722,2.39355438,85.157,85.121,2.4198929]
[1771010309823,11.74315374,85.156,85.131,2.4198929]
[1771010310349,54.36,85.165,85.141,2.4198929]
[1771010310350,11.74201835,85.165,85.141,2.4198929]
[1771010311529,2.5720721,85.164,85.141,2.4198929]
[1771010311930,11.7421885,85.163,85.141,2.4198929]
[1771010313119,2.5720721,85.162,85.132,2.60098125]
[1771010314123,2.5720721,85.16,85.132,2.60098125]
[1771010315538,14.31378658,85.167,85.132,2.60098125]
[1771010315734,2.5720721,85.166,85.132,2.60098125]
[1771010316330,11.74191275,85.165,85.132,2.60098125]
[1771010316727,14.31398485,85.165,85.132,2.60098125]
[1771010317143,11.74116672,85.171,85.141,2.51732689]
[1771010318344,2.4669119,85.179,85.151,2.51732689]
[1771010320628,2.4669119,85.179,85.15,10.25447699]
[1771010320629,14.20565444,85.188,85.161,2.51732689]
[1771010320831,2.4669119,85.188,85.161,2.51732689]
[1771010321431,54.44,85.198,85.171,2.51732689]
[1771010321432,2.4669119,85.198,85.171,2.51732689]
[1771010322132,2.4669119,85.179,85.141,2.51732689]
[1771010322334,2.4669119,85.169,85.131,2.51732689]
[1771010322644,10.25447699,85.17,85.131,2.51732689]
[1771010322645,2.4669119,85.167,85.131,2.51732689]
[1771010322952,2.4669119,85.159,85.131,2.51732689]
[1771010324631,14.20978984,85.158,85.131,2.51732689]
[1771010325448,2.4669119,85.157,85.131,2.51732689]
[1771010328453,11.74315374,85.156,85.131,2.51732689]
[1771010328647,11.74315374,85.156,85.112,45.98]
[1771010328648,11.74163701,85.167,85.141,2.51732689]
[1771010329741,2.4669119,85.171,85.141,2.51732689]
[1771010329936,29.34747987,85.187,85.141,2.51732689]
[1771010329937,2.4669119,85.179,85.141,2.51732689]
[1771010330455,2.4669119,85.178,85.141,2.51732689]
[1771010331153,2.4669119,85.176,85.141,2.51732689]
[1771010333163,2.4669119,85.174,85.141,2.51732689]
[1771010336851,11.74080988,85.173,85.141,2.51732689]
[1771010337061,2.4669119,85.172,85.141,2.51732689]
[1771010337259,3.81872722,85.18,85.12,3.81872722]
[1771010337260,11.74025852,85.177,85.151,2.51732689]
[1771010337767,14.20717042,85.177,85.151,2.51732689]
[1771010338654,2.4669119,85.176,85.151,2.51732689]
[1771010340064,14.20744609,85.175,85.151,2.51732689]
[1771010340266,2.4669119,85.174,85.151,2.51732689]
[1771010340462,2.4669119,85.174,85.141,2.51732689]
[1771010342245,2.44937861,85.172,85.141,2.51732689]
[1771010342467,2.44937861,85.169,85.13,10.22787409]
[1771010342679,2.44937861,85.159,85.129,64.56485086]
[1771010343189,2.44937861,85.159,85.105,102.6]
[1771010343190,2.44937861,85.159,85.118,2.66485086]
[1771010343676,2.44937861,85.158,85.121,2.66485086]
[1771010344371,2.44937861,85.156,85.121,2.66485086]
[1771010345057,2.44937861,85.149,85.121,2.66485086]
[1771010346174,2.44937861,85.149,85.098,45.74]
[1771010346175,11.74252,85.161,85.141,2.66485086]
[1771010346679,2.44937861,85.162,85.141,2.66485086]
[1771010347177,2.44937861,85.169,85.141,2.66485086]
[1771010347880,2.44937861,85.169,85.105,4.61729252]
[1771010347881,11.74067203,85.174,85.151,2.66485086]
[1771010348072,2.44937861,85.181,85.116,4.61729252]
[1771010348073,2.44937861,85.181,85.161,2.66485086]
[1771010348452,2.44937861,85.179,85.151,2.66485086]
[1771010348762,2.44937861,85.177,85.141,2.66485086]
[1771010349184,11.74012068,85.178,85.141,2.66485086]
[1771010349185,2.44937861,85.169,85.141,2.66485086]
[1771010350772,2.44937861,85.167,85.141,2.66485086]
[1771010352578,11.74097594,85.172,85.141,2.66485086]
[1771010353573,11.74039416,85.177,85.151,2.66485086]
[1771010353956,2.44937861,85.179,85.151,2.66485086]
[1771010354158,11.73956957,85.182,85.161,2.66485086]
[1771010354563,14.18894818,85.182,85.161,2.66485086]
[1771010354965,14.18894818,85.182,85.15,10.22787409]
[1771010354966,2.44937861,85.181,85.151,2.66485086]
[1771010356580,2.44937861,85.181,85.16,10.22787409]
[1771010356983,14.18922364,85.18,85.16,10.22787409]
[1771010357190,14.18922364,85.18,85.157,2.66485086]
[1771010357878,2.44937861,85.179,85.157,2.66485086]
[1771010358066,2.44937861,85.185,85.161,2.66485086]
[1771010359483,11.73929376,85.184,85.161,2.66485086]
[1771010359684,2.44937861,85.183,85.161,2.66485086]
[1771010360381,2.44937861,85.183,85.152,2.66485086]
[1771010360580,2.44937861,85.183,85.139,45.56]
[1771010360581,2.44937861,85.183,85.16,10.22787409]
[1771010360787,14.18818041,85.188,85.161,2.66485086]
[1771010360968,11.7381916,85.192,85.171,2.66485086]
[1771010361374,14.18757021,85.192,85.171,2.66485086]
[1771010362996,2.44937861,85.191,85.171,2.66485086]
[1771010365089,14.18707501,85.196,85.171,2.66485086]
[1771010365277,2.44937861,85.195,85.171,2.66485086]
[1771010366376,2.44937861,85.193,85.171,2.66485086]
[1771010367090,3.81663965,85.19,85.155,2.66485086]
[1771010367290,2.44937861,85.189,85.155,2.66485086]
[1771010369190,2.44937861,85.187,85.155,2.66485086]
[1771010369784,2.44937861,85.187,85.16,3.81663965]
[1771010369991,2.44937861,85.187,85.161,2.66485086]
[1771010370768,2.44937861,85.187,85.161,2.57445086]
[1771010370972,11.73874254,85.188,85.161,2.57445086]
[1771010371190,11.73819137,85.192,85.161,2.57445086]
[1771010372283,2.48886354,85.192,85.161,2.57445086]
[1771010373594,2.48886354,85.19,85.161,2.57445086]
[1771010375499,2.48886354,85.189,85.151,2.56775748]
[1771010375676,2.48886354,85.187,85.161,2.56775748]
[1771010385103,11.73901814,85.186,85.161,2.56775748]
[1771010385309,2.63569508,85.185,85.161,2.56775748]
[1771010385487,2.63569508,85.183,85.161,2.56775748]
[1771010391107,2.63569508,85.181,85.151,2.67170476]
[1771010393492,2.63569508,85.179,85.151,2.67170476]
[1771010396215,41.07113519,85.218,85.16,3.81663965]
[1771010396512,41.07113519,85.218,85.12,3.81663965]
[1771010396513,2.63569508,85.258,85.211,2.67170476]
[1771010396717,2.63569508,85.258,85.216,2.67170476]
[1771010396907,2.63569508,85.258,85.219,2.67170476]
[1771010397295,2.63569508,85.258,85.221,2.67170476]
[1771010397510,2.63569508,85.258,85.23,3.81663965]
[1771010398000,2.63569508,85.258,85.231,2.67170476]
[1771010401025,2.63569508,85.258,85.218,6.135]
[1771010401026,2.54753062,85.239,85.218,6.135]
[1771010401318,2.54753062,85.249,85.221,2.47899599]
[1771010404533,2.54753062,85.259,85.221,2.47899599]
[1771010404740,2.54753062,85.259,85.231,2.47899599]
[1771010406331,0.2,85.26,85.25,3.81068928]
[1771010406532,0.2,85.27,85.26,3.81068928]
[1771010407623,2.54753062,85.269,85.247,2.47899599]
[1771010407830,2.54753062,85.269,85.241,2.47899599]
[1771010409532,0.2,85.27,85.241,2.47899599]
[1771010409731,0.2,85.29,85.24,3.81068928]
[1771010409732,0.2,85.29,85.261,2.47899599]
[1771010409942,0.2,85.29,85.271,2.47899599]
[1771010410340,2.54753062,85.288,85.251,2.47899599]
[1771010410540,2.54753062,85.279,85.251,2.47899599]
[1771010410965,2.54753062,85.279,85.248,42.82]
[1771010411565,2.54753062,85.279,85.25,3.81068928]
[1771010411779,2.54753062,85.279,85.251,2.47899599]
[1771010412650,2.54753062,85.289,85.261,2.47899599]
[1771010414155,2.54753062,85.289,85.26,3.81068928]
[1771010414156,2.54753062,85.287,85.256,2.47899599]
[1771010414963,0.2,85.29,85.261,2.47899599]
[1771010415265,2.74753062,85.29,85.261,2.47899599]
[1771010416763,2.54753062,85.288,85.261,2.47899599]
[1771010417064,2.54753062,85.288,85.253,2.47899599]
[1771010417959,2.54753062,85.288,85.261,2.47899599]
[1771010419655,2.54753062,85.288,85.25,45.54]
[1771010419656,2.54753062,85.287,85.254,2.47899599]
[1771010419865,2.54753062,85.287,85.203,29.3413988]
[1771010419866,2.54753062,85.269,85.23,6.28968527]
[1771010420065,2.54753062,85.267,85.23,6.28968527]
[1771010420374,2.54753062,85.267,85.229,2.47899599]
[1771010420672,2.54753062,85.267,85.231,2.47899599]
[1771010421576,2.54753062,85.289,85.251,2.47899599]
[1771010421752,2.54753062,85.289,85.26,6.28968527]
[1771010422069,2.54753062,85.289,85.26,2.47899599]
[1771010422270,2.54753062,85.287,85.261,2.47899599]
[1771010422467,0.2,85.29,85.261,2.47899599]
[1771010423462,2.54753062,85.319,85.281,2.47899599]
[1771010423767,2.54753062,85.319,85.257,4.61729252]
[1771010423768,2.54753062,85.318,85.291,2.47899599]
[1771010424362,2.54753062,85.33,85.31,3.81068928]
[1771010424554,2.54753062,85.339,85.3,3.81068928]
[1771010424756,2.54753062,85.339,85.292,32.82]
[1771010425063,2.54753062,85.339,85.3,3.81068928]
[1771010426767,2.54753062,85.337,85.301,2.47899599]
[1771010426948,2.54753062,85.337,85.311,2.47899599]
[1771010427147,3.81068928,85.33,85.301,2.47899599]
[1771010427475,3.81068928,85.33,85.242,35.3]
[1771010427476,2.54753062,85.309,85.274,2.47899599]
[1771010428372,41.01338207,85.338,85.281,2.47899599]
[1771010428373,2.54753062,85.317,85.281,2.47899599]
[1771010429076,2.54753062,85.299,85.265,2.47899599]
[1771010429476,2.54753062,85.299,85.265,61.9]
[1771010429656,2.54753062,85.299,85.266,2.47899599]
[1771010430064,3.81068928,85.29,85.266,2.47899599]
[1771010430263,3.81068928,85.29,85.267,2.47899599]
[1771010430758,2.54753062,85.289,85.259,2.47899599]
[1771010431272,3.81068928,85.32,85.251,61.9]
[1771010431273,2.68503277,85.279,85.251,2.55330306]
[1771010431977,3.81068928,85.27,85.251,2.55330306]
[1771010433764,3.81068928,85.27,85.245,45.4]
[1771010433964,2.68503277,85.269,85.246,2.55330306]
[1771010434172,2.68503277,85.269,85.245,45.4]
[1771010434383,2.68503277,85.259,85.231,2.55330306]
[1771010437669,3.81068928,85.27,85.231,2.55330306]
[1771010439471,6.43160311,85.28,85.241,2.43731116]
[1771010439669,6.43160311,85.28,85.24,3.81068928]
[1771010439670,6.43160311,85.28,85.243,2.43731116]
[1771010440260,2.62091383,85.289,85.251,2.43731116]
[1771010440466,368.5923675,85.336,85.237,4.61729252]
[1771010440467,2.62091383,85.299,85.261,2.43731116]
[1771010440879,3.81068928,85.29,85.261,2.43731116]
[1771010441478,2.62091383,85.279,85.26,45.42]
[1771010442784,2.62091383,85.286,85.261,2.43731116]
[1771010443672,3.81068928,85.29,85.261,2.43731116]
[1771010443991,2.62091383,85.289,85.261,2.43731116]
[1771010444284,3.81068928,85.29,85.261,2.43731116]
[1771010444687,2.62091383,85.295,85.261,2.43731116]
[1771010444979,2.62091383,85.306,85.271,2.43731116]
[1771010445278,3.81068928,85.31,85.273,2.43731116]
[1771010446784,2.62091383,85.309,85.273,2.43731116]
[1771010448472,2.62091383,85.309,85.275,2.43731116]
[1771010449172,11.72223003,85.308,85.275,2.43731116]
[1771010449487,2.62091383,85.308,85.275,2.43731116]
[1771010450878,3.81068928,85.3,85.275,2.43731116]
[1771010451089,3.81068928,85.3,85.272,45.42]
[1771010451090,2.62091383,85.299,85.272,45.42]
[1771010453805,2.62091383,85.289,85.272,45.42]
[1771010458302,2.62091383,85.289,85.261,45.58]
[1771010459984,2.62091383,85.289,85.262,2.43731116]
[1771010460988,53.34,85.322,85.262,2.43731116]
[1771010460989,3.80828823,85.3,85.262,2.43731116]
[1771010461393,2.44903492,85.299,85.262,2.43731116]
[1771010466010,2.44903492,85.299,85.264,2.68176876]
[1771010466211,2.44903492,85.307,85.271,2.68176876]
[1771010466594,2.44903492,85.299,85.264,2.68176876]
[1771010468213,2.44903492,85.299,85.271,2.68176876]
[1771010469513,2.44903492,85.309,85.281,2.68176876]
[1771010469717,2.44903492,85.309,85.282,2.68176876]
[1771010471921,2.44903492,85.337,85.301,2.68176876]
[1771010472223,2.44903492,85.337,85.281,45.8]
[1771010472224,2.44903492,85.329,85.302,45.84]
[1771010472402,2.44903492,85.329,85.302,45.86]
[1771010472819,2.44903492,85.319,85.302,45.86]
[1771010473406,2.44903492,85.319,85.255,5.36086188]
[1771010473407,2.44903492,85.309,85.288,45.84]
[1771010473601,2.44903492,85.309,85.282,45.84]
[1771010473816,2.44903492,85.309,85.283,2.68176876]
[1771010476311,2.44903492,85.316,85.283,2.68176876]
[1771010477706,15.52898982,85.32,85.283,2.68176876]